bitfinex/quotes_ETHUSD_20250425
["timestamp","ask_amount","ask_price","bid_price","bid_amount"]
[1745624540335,11.2305135,1788.9,1788.5,5.59122376]
[1745624541241,5.64022328,1788.9,1788.5,5.59122376]
[1745624541842,5.59035474,1788.8,1788.5,5.59122376]
[1745624542045,5.59035474,1788.8,1788.4,7.01131533]
[1745624542342,5.59035474,1788.8,1788.4,7.01130324]
[1745624542652,6.3800776,1788.5,1787.9,6.8125]
[1745624542802,5.59284031,1788.1,1787.6,6.37645452]
[1745624543143,5.59289671,1788.0,1787.6,3.7825]
[1745624543339,5.59319336,1787.9,1787.7,0.37825]
[1745624543547,0.7888,1788.2,1787.7,5.97201207]
[1745624543548,5.59270576,1788.1,1787.7,5.97201207]
[1745624543741,5.59270576,1788.1,1787.7,5.97201572]
[1745624544039,5.59286137,1788.0,1787.7,0.37825]
[1745624544347,11.18598637,1788.0,1787.7,0.37825]
[1745624544507,5.59286137,1788.0,1787.7,0.37825]
[1745624545040,5.59321165,1787.9,1787.5,5.59427651]
[1745624545638,5.59347067,1787.8,1787.4,6.3771067]
[1745624545845,5.59378214,1787.7,1787.4,0.7825]
[1745624546050,5.59406933,1787.7,1787.3,5.59490892]
[1745624546221,5.59406933,1787.7,1787.4,0.55949089]
[1745624546419,5.59409961,1787.6,1787.4,0.55949089]
[1745624546621,5.59409961,1787.6,1787.2,6.37763904]
[1745624547030,5.59406035,1787.7,1787.2,6.37760875]
[1745624547351,5.59403059,1787.7,1787.3,5.59499644]
[1745624547555,5.59403059,1787.7,1787.2,6.37764843]
[1745624547723,5.59409498,1787.6,1787.2,6.37764843]
[1745624547913,5.59409498,1787.6,1787.3,0.63776484]
[1745624549247,5.59403059,1787.7,1787.3,0.63776484]
[1745624549445,5.59403059,1787.7,1787.3,6.2327855]
[1745624551612,5.59403059,1787.7,1787.3,6.23259971]
[1745624551912,5.59403059,1787.7,1787.3,11.82740649]
[1745624552326,6.38235479,1787.8,1787.4,5.59465841]
[1745624552530,5.59380857,1787.7,1787.4,5.59465841]
[1745624553149,5.59380857,1787.7,1787.3,6.23259543]
[1745624554949,5.59380857,1787.7,1787.3,6.23259028]
[1745624555153,0.7888,1787.8,1787.3,0.63776484]
[1745624555460,6.40730729,1788.2,1787.8,5.59346683]
[1745624555755,10.2505761,1788.1,1787.7,5.59353712]
[1745624556311,5.358,1788.1,1787.5,0.7509]
[1745624556518,0.8149,1787.7,1787.1,0.7509]
[1745624556818,5.59476116,1787.4,1787.1,0.7509]
[1745624557240,5.59476116,1787.4,1787.0,0.00080001]
[1745624557241,5.59504309,1787.3,1787.0,0.00080001]
[1745624557775,5.59556305,1787.2,1787.0,0.00080001]
[1745624557945,10.25318542,1787.3,1787.0,0.00080001]
[1745624558974,5.59535742,1787.2,1787.0,0.00080001]
[1745624559174,10.25319532,1787.3,1787.0,0.00080001]
[1745624559775,15.84852855,1787.3,1787.0,0.00080001]
[1745624559976,10.25319532,1787.3,1787.0,0.00080001]
[1745624560941,4.658,1787.3,1787.1,5.59550056]
[1745624561793,0.8149,1787.4,1787.0,0.00080001]
[1745624561794,5.59565776,1787.1,1787.0,0.00080001]
[1745624561990,10.25454108,1787.2,1787.0,0.00080001]
[1745624562562,5.59565776,1787.1,1787.0,0.00080001]
[1745624562778,6.40985776,1787.1,1787.0,0.00080001]
[1745624563388,8.1199917,1787.1,1787.0,0.00080001]
[1745624563680,8.07629764,1787.1,1787.0,0.00080001]
[1745624564047,6.40985776,1787.1,1787.0,0.00080001]
[1745624564473,4.659,1787.2,1787.0,0.00080001]
[1745624565675,10.25435133,1787.2,1787.0,0.00080001]
[1745624565890,4.659,1787.2,1787.0,0.00080001]
[1745624566291,5.59565776,1787.1,1787.0,0.00080001]
[1745624566874,10.25462748,1787.2,1787.0,0.00080001]
[1745624569007,5.59565776,1787.1,1787.0,0.00080001]
[1745624569510,7.18068628,1787.1,1787.0,0.00080001]
[1745624570989,5.59565776,1787.1,1787.0,0.00080001]
[1745624572017,10.25462748,1787.2,1786.9,0.40003178]
[1745624572529,10.25462505,1787.2,1786.9,0.40003178]
[1745624573029,5.59575143,1787.1,1786.9,0.40003178]
[1745624573231,5.59575143,1787.1,1786.9,0.35003178]
[1745624575341,10.2545879,1787.2,1786.9,0.35003178]
[1745624575543,4.659,1787.2,1786.9,0.35003178]
[1745624575740,4.659,1787.2,1786.9,5.94608355]
[1745624575899,10.25435848,1787.2,1786.9,5.94608355]
[1745624576100,10.25435848,1787.2,1786.9,0.35003178]
[1745624576813,5.59535848,1787.2,1786.9,6.60471452]
[1745624578403,5.59535848,1787.2,1786.9,5.94629604]
[1745624579403,11.14152872,1787.3,1786.9,5.94629604]
[1745624580242,16.736848,1787.3,1786.9,5.94629604]
[1745624581146,16.736848,1787.3,1786.9,5.94614777]
[1745624581147,11.14147248,1787.3,1786.9,5.94614777]
[1745624581317,4.732,1787.3,1787.0,1.41522613]
[1745624581521,11.70427172,1787.6,1787.1,5.59539425]
[1745624581707,4.732,1787.5,1787.2,5.59520495]
[1745624582256,10.32644894,1787.5,1787.2,5.59520495]
[1745624583050,4.732,1787.5,1787.2,5.59520495]
[1745624583440,10.32653934,1787.5,1787.1,6.29645629]
[1745624585060,10.32653934,1787.5,1787.1,11.89189716]
[1745624585666,0.8307,1787.7,1787.2,1.82191585]
[1745624585830,4.732,1787.6,1787.3,0.754]
[1745624586151,5.59477692,1787.4,1787.1,0.754]
[1745624586456,5.59462799,1787.5,1787.1,6.34965546]
[1745624589648,5.59480116,1787.4,1787.1,0.754]
[1745624589855,5.59462799,1787.5,1787.1,6.34949325]
[1745624590021,5.59462799,1787.5,1787.1,6.34947712]
[1745624590220,5.59462799,1787.5,1787.1,6.34942843]
[1745624590420,5.59462799,1787.5,1787.1,11.94486389]
[1745624590758,5.59462799,1787.5,1787.1,13.13935028]
[1745624591552,5.59462799,1787.5,1787.1,13.13938178]
[1745624592057,5.59462799,1787.5,1787.2,5.5953255]
[1745624592724,10.32626687,1787.6,1787.2,5.5953255]
[1745624594462,5.59442194,1787.5,1787.2,5.5953255]
[1745624596175,4.732,1787.6,1787.2,5.5953255]
[1745624596375,4.732,1787.6,1787.3,5.59502843]
[1745624596578,4.732,1787.6,1787.4,5.59470421]
[1745624598085,4.732,1787.6,1787.3,6.34882306]
[1745624599052,10.32631197,1787.6,1787.3,0.754]
[1745624599467,4.732,1787.6,1787.3,0.754]
[1745624599873,4.732,1787.6,1787.4,5.59471576]
[1745624600060,4.732,1787.6,1787.3,6.34880258]
[1745624602885,10.32609317,1787.6,1787.3,6.34880258]
[1745624604888,4.732,1787.6,1787.3,6.34880258]
[1745624605072,4.732,1787.6,1787.3,6.98368284]
[1745624605465,4.732,1787.6,1787.4,5.59471716]
[1745624605755,4.715,1787.7,1787.4,5.59471716]
[1745624605949,4.715,1787.8,1787.6,0.7825]
[1745624606178,10.30846956,1787.8,1787.6,0.7825]
[1745624606381,11.8986464,1787.8,1787.4,7.00994329]
[1745624606592,10.30846956,1787.8,1787.4,7.00994329]
[1745624606756,15.90222613,1787.8,1787.4,7.00994329]
[1745624606955,10.30846956,1787.8,1787.4,7.00994329]
[1745624608665,10.30846956,1787.8,1787.4,7.00978465]
[1745624609389,10.30846956,1787.8,1787.4,12.60430804]
[1745624609588,27.8585044,1788.2,1787.8,5.59336628]
[1745624609800,22.2661,1788.2,1787.9,5.59311356]
[1745624610097,4.715,1788.2,1787.9,5.59298444]
[1745624610277,4.715,1788.2,1788.0,6.37533645]
[1745624610594,4.715,1788.2,1788.0,6.37520966]
[1745624611485,6.35221927,1788.4,1788.0,6.37520966]
[1745624611689,11.94407099,1788.4,1788.0,6.37520966]
[1745624611890,6.35221927,1788.4,1788.0,6.37520966]
[1745624612091,4.714,1788.3,1788.1,5.5925281]
[1745624612386,4.714,1788.3,1788.0,6.37520966]
[1745624612760,4.714,1788.3,1788.0,0.7825]
[1745624612761,10.3060729,1788.3,1788.0,0.7825]
[1745624616314,4.714,1788.3,1788.0,7.0127131]
[1745624616606,4.714,1788.3,1788.1,5.59252644]
[1745624617215,4.714,1788.3,1788.0,7.0127131]
[1745624619188,4.714,1788.3,1788.1,5.59248171]
[1745624619785,4.714,1788.3,1788.0,7.0127131]
[1745624620490,4.714,1788.3,1788.0,6.37517064]
[1745624622018,10.30591348,1788.3,1788.0,6.37517064]
[1745624622421,10.30591348,1788.3,1788.0,0.7825]
[1745624622621,4.714,1788.3,1788.0,6.37524327]
[1745624623911,10.30595869,1788.3,1788.0,6.37524327]
[1745624626216,10.30595869,1788.3,1788.0,0.7825]
[1745624627040,15.89811983,1788.3,1788.0,0.7825]
[1745624627244,10.30595869,1788.3,1788.0,0.7825]
[1745624627541,4.714,1788.3,1788.1,5.59238753]
[1745624627836,4.714,1788.3,1788.0,7.01285003]
[1745624628538,4.714,1788.3,1788.0,7.01268749]
[1745624628717,4.714,1788.3,1788.1,5.59252705]
[1745624629111,11.03620131,1788.4,1788.1,5.59252705]
[1745624630036,5.4445,1788.4,1788.1,5.59252705]
[1745624631344,5.4445,1788.4,1788.2,5.59214665]
[1745624631546,4.684,1788.6,1788.3,6.37377902]
[1745624632044,4.684,1788.6,1788.4,5.59137449]
[1745624632435,0.7997,1788.7,1788.4,5.59137449]
[1745624632734,5.4837,1788.7,1788.4,5.59137449]
[1745624633338,5.4837,1788.7,1788.4,6.78788868]
[1745624634346,4.684,1788.7,1788.5,5.59123497]
[1745624634532,4.684,1788.7,1788.5,5.59104645]
[1745624634847,4.684,1788.7,1788.5,11.1821328]
[1745624635226,4.684,1788.7,1788.5,5.59104645]
[1745624635424,22.3117,1788.9,1788.5,2.02039612]
[1745624635751,22.3117,1788.9,1788.6,5.59079311]
[1745624636154,27.90183264,1788.9,1788.5,6.37357012]
[1745624637254,27.90183264,1788.9,1788.5,0.7825]
[1745624637255,5.59050739,1788.8,1788.5,0.7825]
[1745624637650,27.90190288,1788.9,1788.5,6.37375469]
[1745624639359,5.59050966,1788.8,1788.4,5.59152555]
[1745624639662,8.93975106,1788.8,1788.4,5.59152555]
[1745624641864,8.93975106,1788.8,1788.4,11.18291394]
[1745624642066,8.93975106,1788.8,1788.5,5.59123488]
[1745624643746,5.59050966,1788.8,1788.5,5.59123488]
[1745624644740,11.12390438,1788.9,1788.5,5.59123488]
[1745624645632,5.5337,1788.9,1788.6,5.59072141]
[1745624645837,5.5327,1788.9,1788.6,11.18151983]
[1745624646266,5.5327,1788.9,1788.6,11.18146699]
[1745624646573,5.5327,1788.9,1788.6,5.59072141]
[1745624648236,5.5327,1788.9,1788.7,5.59063092]
[1745624648436,5.5327,1788.9,1788.6,5.5907771]
[1745624648746,5.5327,1788.9,1788.7,5.59054741]
[1745624649159,5.5327,1788.9,1788.6,11.74061648]
[1745624649355,5.5327,1788.9,1788.6,11.74060963]
[1745624649533,5.5327,1788.9,1788.6,6.14983938]
[1745624649742,5.5327,1788.9,1788.6,11.74059051]
[1745624650269,5.5327,1788.9,1788.7,5.59063645]
[1745624650475,4.733,1788.9,1788.7,5.59047844]
[1745624651572,4.733,1788.9,1788.6,11.74065196]
[1745624651742,4.733,1788.9,1788.7,5.59061715]
[1745624652279,4.733,1788.9,1788.7,5.59050059]
[1745624652775,4.733,1788.9,1788.7,12.35500518]
[1745624652974,0.05,1788.9,1788.7,12.35497182]
[1745624653182,0.05,1788.9,1788.8,5.59033989]
[1745624654885,0.05,1788.9,1788.7,6.76447476]
[1745624655956,0.05,1788.9,1788.7,12.35490271]
[1745624656680,0.05,1788.9,1788.7,6.76446789]
[1745624656848,0.05,1788.9,1788.7,6.76446681]
[1745624658379,0.05,1788.9,1788.7,12.35491435]
[1745624658877,0.05,1788.9,1788.7,6.76446681]
[1745624659176,0.05,1788.9,1788.7,12.35489859]
[1745624659674,0.05,1788.9,1788.7,6.76446681]
[1745624660183,5.59080585,1788.7,1788.3,5.59174228]
[1745624660682,10.25880585,1788.7,1788.3,5.59174228]
[1745624663191,5.591131,1788.6,1788.2,6.3745862]
[1745624663377,6.34981238,1788.5,1788.2,5.5920862]
[1745624663690,0.7585,1788.5,1788.3,5.59173723]
[1745624663993,10.25879332,1788.7,1788.3,6.71011957]
[1745624664299,0.7585,1788.6,1788.3,6.71011957]
[1745624664993,4.668,1788.7,1788.4,5.59145302]
[1745624665199,4.668,1788.7,1788.5,6.37358499]
[1745624665407,4.668,1788.7,1788.6,5.590965]
[1745624665752,0.05,1788.9,1788.6,6.78729675]
[1745624666015,0.05,1788.9,1788.7,5.59042827]
[1745624666358,0.05,1788.9,1788.7,11.18085654]
[1745624666691,0.05,1788.9,1788.8,5.59033989]
[1745624666997,0.05,1788.9,1788.7,5.59042827]
[1745624667196,0.05,1788.9,1788.7,6.82819934]
[1745624668178,0.05,1788.9,1788.8,5.59033989]
[1745624685133,0.05,1788.9,1788.8,6.79294493]
[1745624701495,0.7546,1788.7,1788.3,5.59174005]
[1745624701797,5.59107681,1788.6,1788.3,1.20260504]
[1745624702145,6.34529171,1788.7,1788.3,6.79435986]
[1745624702485,0.7546,1788.7,1788.5,5.59113561]
[1745624703077,0.7546,1788.7,1788.5,6.79374065]
[1745624703289,0.8603,1788.9,1788.6,5.59075201]
[1745624703445,0.8603,1788.9,1788.5,1.20260504]
[1745624703681,0.05,1788.9,1788.8,5.59033989]
[1745624704317,0.05,1788.9,1788.8,6.70842592]
[1745624704629,0.05,1788.9,1788.6,5.59079158]
[1745624705317,0.05,1788.9,1788.6,11.18152174]
[1745624705520,0.04262678,1788.9,1788.7,5.59062956]
[1745624707646,0.04262678,1788.9,1788.6,6.00928481]
[1745624708136,0.04262678,1788.9,1788.6,11.60002657]
[1745624708334,0.04262678,1788.9,1788.6,12.76002923]
[1745624708560,0.8027,1788.8,1788.6,7.16919665]
[1745624709448,0.8027,1788.8,1788.6,1.57845489]
[1745624709752,0.8027,1788.8,1788.6,1.16000266]
[1745624710051,6.39324776,1788.8,1788.4,6.27086385]
[1745624711539,6.3932285,1788.8,1788.4,6.27086385]
[1745624711856,5.59067936,1788.7,1788.4,6.27086385]
[1745624712018,6.39326192,1788.8,1788.4,6.27086385]
[1745624713342,6.34877762,1788.6,1788.2,0.7825]
[1745624713528,6.34877762,1788.6,1788.2,6.37467444]
[1745624713718,6.34877762,1788.6,1788.2,5.59217444]
[1745624713941,11.94002049,1788.6,1788.2,5.59217444]
[1745624714114,11.94002049,1788.6,1787.8,5.59317561]
[1745624714115,5.59205482,1788.3,1787.8,5.59317561]
[1745624714315,0.7576,1788.2,1788.1,5.59252838]
[1745624714627,0.7576,1788.2,1788.0,5.59263571]
[1745624715151,0.7576,1788.2,1788.0,5.5926226]
[1745624715351,0.7576,1788.2,1788.0,5.59261726]
[1745624715530,0.7576,1788.2,1788.1,0.55926173]
[1745624715957,0.7576,1788.2,1787.9,6.78361387]
[1745624716364,0.7576,1788.2,1787.9,6.15228395]
[1745624716529,6.34984106,1788.2,1787.9,6.15228395]
[1745624717233,0.7576,1788.2,1787.9,6.15228395]
[1745624718602,6.34983994,1788.2,1787.9,0.55931756]
[1745624718968,5.59253179,1788.1,1787.9,0.55931756]
[1745624719532,6.35003309,1788.2,1787.9,0.55931756]
[1745624719838,11.94252852,1788.2,1787.9,0.55931756]
[1745624720037,6.35003309,1788.2,1787.9,0.55931756]
[1745624722269,11.94255522,1788.2,1787.9,0.55931756]
[1745624722473,6.35003309,1788.2,1787.9,0.55931756]
[1745624722835,11.94253432,1788.2,1787.9,0.55931756]
[1745624723036,0.7576,1788.3,1787.9,1.19064748]
[1745624723274,4.662,1788.5,1788.3,5.59171205]
[1745624723588,0.7576,1788.6,1788.4,6.15076144]
[1745624724571,0.7576,1788.6,1788.4,0.5591712]
[1745624724751,6.34862947,1788.6,1788.3,5.59171205]
[1745624724940,6.34862947,1788.6,1788.2,6.37452009]
[1745624725145,6.34862947,1788.6,1788.3,5.59188218]
[1745624725686,0.7576,1788.6,1788.3,5.59188218]
[1745624726186,6.348571,1788.6,1788.2,6.37450947]
[1745624726347,6.348571,1788.6,1788.3,0.63745095]
[1745624726548,6.348571,1788.6,1788.3,6.22931522]
[1745624726873,0.7576,1788.6,1788.3,6.22931522]
[1745624727174,6.34857075,1788.6,1788.3,6.22934978]
[1745624727399,0.7576,1788.6,1788.3,6.22934978]
[1745624727676,0.7576,1788.6,1788.4,0.62293498]
[1745624729681,6.34859102,1788.6,1788.4,0.62293498]
[1745624729887,6.34859102,1788.6,1788.3,0.63745095]
[1745624730496,6.34859102,1788.6,1788.3,6.22934428]
[1745624731587,0.7576,1788.6,1788.3,6.22934428]
[1745624733087,6.34868989,1788.6,1788.3,0.63745095]
[1745624733458,6.34868989,1788.6,1788.3,6.2293382]
[1745624733991,6.34868989,1788.6,1788.3,0.63745095]
[1745624734157,0.7576,1788.6,1788.3,6.22935012]
[1745624734902,0.7576,1788.6,1788.4,0.62293501]
[1745624735054,0.7576,1788.6,1788.3,6.22935012]
[1745624736303,0.7576,1788.6,1788.3,11.8210217]
[1745624738197,0.8085,1788.7,1788.4,5.59158395]
[1745624739512,0.8085,1788.7,1788.5,5.5911756]
[1745624739875,4.662,1788.8,1788.5,5.59108441]
[1745624740102,4.662,1788.8,1788.5,6.70933413]
[1745624742704,0.8085,1788.5,1788.0,0.7787]
[1745624742907,6.40089925,1788.2,1787.8,5.59331313]
[1745624743707,0.8085,1788.2,1787.9,5.59309563]
[1745624743863,0.8085,1788.2,1788.0,0.55930956]
[1745624748688,6.40071602,1788.2,1788.0,0.55930956]
[1745624748892,0.8085,1788.2,1788.0,0.55930956]
[1745624749586,0.8085,1788.2,1788.0,6.15215002]
[1745624750630,0.8085,1788.2,1788.0,0.55930956]
[1745624754638,0.8085,1788.2,1788.0,6.15214491]
[1745624754798,0.8085,1788.2,1788.1,0.61521449]
[1745624755735,0.8085,1788.2,1788.0,0.55930956]
[1745624757834,6.40075686,1788.2,1788.0,0.55930956]
[1745624759144,0.8085,1788.2,1788.0,0.55930956]
[1745624763850,6.40072127,1788.2,1788.0,0.55930956]
[1745624768471,6.40072127,1788.2,1787.8,6.008184]
[1745624768751,5.59300877,1788.0,1787.7,0.7787]
[1745624769330,5.59300877,1788.0,1787.6,11.93821942]
[1745624769744,5.59300877,1788.0,1787.7,5.59377127]
[1745624769925,5.59300877,1788.0,1787.7,6.78757654]
[1745624770732,5.59300877,1788.0,1787.7,1.19380527]
[1745624771192,0.8085,1788.2,1787.6,0.7504]
[1745624771193,6.38916872,1787.9,1787.6,0.7504]
[1745624771452,6.38916872,1787.9,1787.5,6.79207513]
[1745624771933,5.59353202,1787.8,1787.5,0.7825]
[1745624773660,5.59353202,1787.8,1787.4,11.18898986]
[1745624773827,5.59353202,1787.8,1787.5,1.11889899]
[1745624775068,5.59353202,1787.8,1787.5,6.71322535]
[1745624775360,6.38916872,1787.9,1787.5,6.71322535]
[1745624775572,5.4275,1788.2,1787.8,5.5932558]
[1745624775772,11.01984464,1788.2,1787.8,6.37577636]
[1745624775976,5.59284116,1788.0,1787.9,0.63757764]
[1745624776146,5.59255262,1788.1,1787.7,5.59373782]
[1745624776471,5.59255262,1788.1,1787.7,5.59361925]
[1745624776765,5.59255262,1788.1,1787.6,6.37637108]
[1745624777063,5.59286823,1788.0,1787.6,6.37637108]
[1745624777264,6.36578395,1787.9,1787.5,12.7350611]
[1745624777463,5.59351937,1787.8,1787.6,1.27350611]
[1745624777649,5.59351937,1787.8,1787.4,11.97149705]
[1745624777851,5.59351937,1787.8,1787.4,6.37699458]
[1745624778366,5.59351937,1787.8,1787.4,11.97148241]
[1745624779568,5.59351937,1787.8,1787.4,6.37698783]
[1745624779757,5.5938872,1787.7,1787.4,1.26032101]
[1745624780073,5.5938872,1787.7,1787.4,6.85502951]
[1745624780278,6.4096872,1787.7,1787.4,6.85502951]
[1745624780569,0.8158,1787.7,1787.5,5.59439772]
[1745624780755,0.8158,1787.7,1787.4,6.85481274]
[1745624780957,0.8158,1787.7,1787.5,0.68548127]
[1745624782885,6.40961847,1787.7,1787.5,0.68548127]
[1745624783183,0.8158,1787.7,1787.5,0.68548127]
[1745624783582,6.40961094,1787.7,1787.5,0.68548127]
[1745624785382,6.40961094,1787.7,1787.4,1.26032101]
[1745624785682,6.40961094,1787.7,1787.3,6.0042887]
[1745624786781,6.40961094,1787.7,1787.3,11.5990808]
[1745624786982,6.40961094,1787.7,1787.3,6.00425846]
[1745624787192,5.59434831,1787.6,1787.2,6.37768422]
[1745624787358,5.59434831,1787.6,1787.2,5.59518422]
[1745624788186,6.40975437,1787.7,1787.2,1.4190654]
[1745624788485,0.8158,1787.7,1787.4,5.59448934]
[1745624791492,6.40963531,1787.7,1787.4,5.59448934]
[1745624791884,0.8158,1787.7,1787.4,11.18898675]
[1745624792095,0.8158,1787.7,1787.5,5.59437052]
[1745624792266,0.8158,1787.7,1787.4,5.59448934]
[1745624792566,0.8158,1787.7,1787.5,0.55944893]
[1745624792888,0.8158,1787.7,1787.4,5.59448934]
[1745624794092,0.8158,1787.7,1787.4,11.18900438]
[1745624794267,0.8158,1787.7,1787.5,5.59432847]
[1745624794468,0.8158,1787.7,1787.4,11.18901622]
[1745624795291,0.8158,1787.7,1787.4,11.18900609]
[1745624795468,0.8158,1787.7,1787.4,6.79163995]
[1745624796790,6.40968045,1787.7,1787.4,1.19715061]
[1745624796992,6.40968045,1787.7,1787.3,6.37735153]
[1745624797658,5.59437916,1787.6,1787.2,11.19030212]
[1745624797875,5.59437916,1787.6,1787.2,5.59513651]
[1745624798282,0.8158,1787.7,1787.1,6.79726863]
[1745624798587,11.18929821,1787.5,1787.1,5.59547621]
[1745624798756,5.59463595,1787.5,1787.1,6.79285454]
[1745624799395,5.59463595,1787.5,1787.1,12.38831653]
[1745624799583,5.59463595,1787.5,1787.1,6.79284032]
[1745624799782,5.59463595,1787.5,1787.2,5.5952437]
[1745624799984,12.02124379,1787.6,1787.2,5.5952437]
[1745624800289,6.426884,1787.6,1787.2,5.5952437]
[1745624800589,12.021248,1787.6,1787.2,5.5952437]
[1745624800793,5.59441495,1787.5,1787.1,6.792827]
[1745624801095,5.59441495,1787.5,1787.2,0.6792827]
[1745624801458,5.59441495,1787.5,1787.2,6.27461381]
[1745624801991,6.426884,1787.6,1787.2,6.27461381]
[1745624802190,12.02123259,1787.6,1787.2,6.27446081]
[1745624802358,6.426884,1787.6,1787.2,6.27446081]
[1745624802564,12.02127123,1787.6,1787.2,6.27446081]
[1745624803097,12.02126055,1787.6,1787.2,6.27446081]
[1745624803393,6.426884,1787.6,1787.2,6.27446081]
[1745624803571,12.02126274,1787.6,1787.2,6.27446081]
[1745624803973,5.59442863,1787.5,1787.2,6.27446081]
[1745624804198,5.59442863,1787.5,1787.2,0.6792827]
[1745624811099,5.59442863,1787.5,1787.2,6.27457583]
[1745624811263,6.426884,1787.6,1787.2,6.27445271]
[1745624811469,6.426884,1787.6,1787.2,6.27440873]
[1745624812202,12.02121574,1787.6,1787.2,6.27440873]
[1745624812383,6.426884,1787.6,1787.2,6.27440873]
[1745624812569,6.426884,1787.6,1787.2,11.86959294]
[1745624812769,12.02120802,1787.6,1787.2,6.27440873]
[1745624813302,6.426884,1787.6,1787.2,6.27440873]
[1745624813604,0.7736,1787.9,1787.4,1.20465278]
[1745624813765,4.655,1788.0,1787.7,5.59367664]
[1745624813966,4.655,1788.0,1787.7,5.59359548]
[1745624814678,10.24794451,1788.0,1787.6,6.35913812]
[1745624814877,5.59326227,1787.9,1787.6,6.35913812]
[1745624815409,10.24794451,1788.0,1787.6,6.35913812]
[1745624816569,5.59332533,1787.9,1787.5,5.59420827]
[1745624816904,5.59332533,1787.9,1787.5,11.18840755]
[1745624817299,5.59332533,1787.9,1787.6,5.59407553]
[1745624818303,5.59332533,1787.9,1787.5,11.18842078]
[1745624818488,5.59482874,1787.4,1787.0,0.41057337]
[1745624818800,6.36817425,1787.5,1787.1,5.5955517]
[1745624819008,5.59483046,1787.4,1787.1,5.5955517]
[1745624819507,6.36817425,1787.5,1787.1,5.5955517]
[1745624820010,6.36817425,1787.5,1787.1,5.59547889]
[1745624820011,0.7736,1787.5,1787.1,5.59547889]
[1745624820320,4.655,1787.6,1787.3,0.7679]
[1745624820482,4.655,1787.6,1787.3,6.3628273]
[1745624820682,10.24924432,1787.6,1787.3,0.7679]
[1745624821214,4.655,1787.6,1787.3,6.36278488]
[1745624825683,10.24911361,1787.6,1787.3,6.36278488]
[1745624826003,4.655,1787.6,1787.3,6.36275922]
[1745624826204,4.655,1787.6,1787.3,7.61450786]
[1745624829186,10.24922605,1787.6,1787.3,2.01964864]
[1745624829389,10.24922605,1787.6,1787.3,7.61465398]
[1745624831129,10.24922605,1787.6,1787.2,6.15467368]
[1745624832198,10.24922605,1787.6,1787.2,6.15466695]
[1745624832399,10.24922605,1787.6,1787.3,5.595001]
[1745624832996,10.24922605,1787.6,1787.2,6.15466695]
[1745624833198,10.24922605,1787.6,1787.3,5.59493812]
[1745624833838,10.24922605,1787.6,1787.2,6.15465938]
[1745624835540,10.24922605,1787.6,1787.2,0.55954789]
[1745624835701,5.59450808,1787.5,1787.2,5.59531025]
[1745624838541,10.24930574,1787.6,1787.2,5.59531025]
[1745624838937,10.24930574,1787.6,1787.2,11.19047632]
[1745624839109,4.655,1787.6,1787.3,5.5949233]
[1745624839448,10.24909452,1787.6,1787.3,5.5949233]
[1745624840336,10.24909452,1787.6,1787.2,11.19031333]
[1745624840520,10.24909452,1787.6,1787.2,12.38759466]
[1745624841050,4.655,1787.6,1787.3,5.59501773]
[1745624841848,10.24927577,1787.6,1787.2,12.38757283]
[1745624842051,10.24927577,1787.6,1787.2,6.79242557]
[1745624842236,10.24927577,1787.6,1787.3,5.59502389]
[1745624842433,4.655,1787.6,1787.4,5.59441981]
[1745624849916,4.655,1787.6,1787.5,5.59440559]
[1745624850123,4.654,1788.3,1787.8,5.59318037]
[1745624850364,5.59208821,1788.3,1787.9,7.57996633]
[1745624850545,6.78781877,1788.3,1787.9,6.37544623]
[1745624850763,6.78781877,1788.3,1787.9,11.96839952]
[1745624851271,6.78781877,1788.3,1787.9,11.9683743]
[1745624851569,6.36521734,1788.4,1788.0,5.59284116]
[1745624851738,6.36521734,1788.4,1788.1,5.5924735]
[1745624851739,11.01921734,1788.4,1788.1,5.5924735]
[1745624852444,11.01921734,1788.4,1788.0,5.59284116]
[1745624852835,11.01921734,1788.4,1788.0,11.1854997]
[1745624853798,11.01921734,1788.4,1788.1,5.59251229]
[1745624857431,11.01921734,1788.4,1788.0,5.5926584]
[1745624857650,11.01921734,1788.4,1788.0,11.18530288]
[1745624858251,11.01921734,1788.4,1788.0,11.18533105]
[1745624858688,11.01921734,1788.4,1788.0,5.59264448]
[1745624860072,16.61110606,1788.4,1788.0,5.59264448]
[1745624860374,5.59198545,1788.3,1788.0,5.59264448]
[1745624860574,5.59198545,1788.3,1788.0,6.23015893]
[1745624861382,5.59198545,1788.3,1788.0,0.63751445]
[1745624864387,5.59198545,1788.3,1788.0,6.23033889]
[1745624866893,5.59198545,1788.3,1788.0,0.63751445]
[1745624867093,5.59198545,1788.3,1787.9,11.96838855]
[1745624867901,0.7934,1788.2,1787.9,5.592937]
[1745624868076,5.59298899,1788.0,1787.7,0.7647]
[1745624868393,5.59280336,1788.1,1787.7,6.35838808]
[1745624868993,6.38580172,1788.2,1787.7,6.35832607]
[1745624869170,6.38580172,1788.2,1787.8,5.59334954]
[1745624869493,11.97828585,1788.2,1787.8,5.59334954]
[1745624869997,6.38580172,1788.2,1787.8,5.59334954]
[1745624870200,6.38580172,1788.2,1787.9,5.59315219]
[1745624870391,6.38580172,1788.2,1787.8,5.59334954]
[1745624871186,11.97832983,1788.2,1787.8,5.59334954]
[1745624871390,6.38580172,1788.2,1787.8,5.59334954]
[1745624872279,11.9782748,1788.2,1787.8,5.59334954]
[1745624872705,11.97828237,1788.2,1787.8,5.59334954]
[1745624873204,6.38580172,1788.2,1787.8,5.59334954]
[1745624873380,6.38580172,1788.2,1787.8,5.59326706]
[1745624874302,11.97827843,1788.2,1787.8,5.59326706]
[1745624875003,6.38580172,1788.2,1787.8,5.59326706]
[1745624875305,11.97827937,1788.2,1787.8,5.59326706]
[1745624875504,6.38580172,1788.2,1787.8,5.59326706]
[1745624875706,11.97830601,1788.2,1787.8,5.59326706]
[1745624875898,5.59255275,1788.1,1787.8,5.59326706]
[1745624876997,7.58358673,1788.2,1787.8,5.59326706]
[1745624877205,13.17604937,1788.2,1787.8,5.59326706]
[1745624877404,13.1760705,1788.2,1787.8,5.59326706]
[1745624877604,7.58358673,1788.2,1787.8,5.59326706]
[1745624878409,6.38580172,1788.2,1787.8,5.59326706]
[1745624879711,11.03780172,1788.2,1787.8,5.59326706]
[1745624879909,16.63029462,1788.2,1787.8,5.59326706]
[1745624880106,11.03780172,1788.2,1787.8,11.18655611]
[1745624880307,11.03780172,1788.2,1787.8,5.59326706]
[1745624880720,5.59255642,1788.1,1787.8,5.59326706]
[1745624881881,17.19973026,1788.2,1787.8,5.59326706]
[1745624882376,11.60722691,1788.2,1787.8,5.59326706]
[1745624882714,17.19970458,1788.2,1787.8,5.59326706]
[1745624885216,5.59253519,1788.1,1787.8,5.59326706]